[Event "ISR Youth-Ch Finals 2021 U18"]
[Site "Ramat Hasharon"]
[Date "2021.03.26"]
[Round "9.11"]
[White "Neiman, Maks"]
[Black "Sobel, Alon"]
[Result "0-1"]
[ECO "D02"]
[WhiteElo "1993"]
[BlackElo "1825"]
[Annotator "NA"]
[PlyCount "90"]
[EventDate "2021.03.19"]
[EventType "swiss"]
[EventCountry "ISR"]
[SourceTitle "playchess.com"]
[Source "ChessBase"]
[SourceQuality "1"]
[TimeControl "5400+30"]

1. d4 {[%emt 0:03:07]} d5 {[%emt 0:01:03]} 2. Nf3 {[%emt 0:00:49]} Nf6 {[%emt 0:00:30]} 3. Bf4 {[%emt 0:00:30]} c5 {[%emt 0:00:30]} 4. e3 {[%emt 1:27:34]} Nc6 {[%emt 0:00:00]} 5. c3 {[%emt 0:00:00]} Qb6 {[%emt 0:00:00]} 6. Qb3 {[%emt 0:00:00]} c4 {[%emt 0:00:00]} 7. Qc2 {[%emt 0:00:00]} Bf5 {[%emt 0:00:00]} 8. Qc1 {[%emt 0:00:00]} Nh5 {[%emt 0:00:13]} 9. Bg3 {[%emt 0:00:00]} h6 {[%emt 0:02:14]} 10. Nbd2 {[%emt 0:00:00]} e6 {[%emt 0:01:47]} 11. Be2 {[%emt 0:00:00]} Nxg3 {[%emt 0:03:58]} 12. hxg3 {[%emt 0:00:00]} Qa5 {[%emt 0:00:59]} 13. Bd1 {[%emt 0:00:00]} Bd6 {[%emt 0:03:24]} 14. Bc2 {[%emt 0:00:00]} Bxc2 {[%emt 0:01:44]} 15. Qxc2 {[%emt 0:00:00]} b5 {[%emt 0:00:43]} 16. e4 {[%emt 0:00:00]} Qc7 {[%emt 0:05:24]} 17. g4 {[%emt 0:00:00]} Bf4 {[%emt 0:04:38]} 18. g3 {[%emt 0:00:00]} Bxd2+ {[%emt 0:00:12]} 19. Nxd2 {[%emt 0:00:00]} O-O-O {[%emt 0:01:42]} 20. Kf1 {[%emt 0:00:00]} Qb7 {[%emt 0:03:08]} 21. a4 {[%emt 0:00:00]} b4 22. exd5 {[%emt 0:09:00]} exd5 {[%emt 0:05:36]} 23. b3 {[%emt 0:00:00]} Rhe8 {[%emt 0:04:57]} 24. bxc4 {[%emt 0:01:00]} dxc4 {[%emt 0:00:19]} 25. Rh5 {[%emt 0:00:00]} b3 {[%emt 0:02:36]} 26. Qf5+ {[%emt 0:00:00]} Re6 {[%emt 0:05:51]} 27. Qb5 {[%emt 0:00:00]} Nxd4 {[%emt 0:02:36]} 28. cxd4 {[%emt 0:00:00]} Rc6 {[%emt 0:02:11]} 29. Qxb7+ {[%emt 0:00:00]} Kxb7 {[%emt 0:00:18]} 30. Rb5+ {[%emt 0:00:00]} Kc7 {[%emt 0:04:59]} 31. d5 {[%emt 0:00:00]} a6 {[%emt 0:01:14]} 32. Rb7+ {[%emt 0:00:00]} Kxb7 {[%emt 0:01:57]} 33. dxc6+ {[%emt 0:00:00]} Kxc6 {[%emt 0:00:08]} 34. Nxc4 {[%emt 0:00:00]} Kc5 {[%emt 0:00:53]} 35. Ne5 {[%emt 0:00:00]} Rd2 {[%emt 0:00:43]} 36. Rb1 {[%emt 0:00:00]} Kb4 {[%emt 0:01:13]} 37. Nf3 {[%emt 0:00:00]} Rd5 {[%emt 0:02:39]} 38. a5 {[%emt 0:07:00]} Ka3 {[%emt 0:02:22]} 39. Ra1+ {[%emt 0:00:00]} Kb2 {[%emt 0:00:40]} 40. Ra4 {[%emt 0:00:00]} Kc3 {[%emt 0:00:41]} 41. Ra3 {[%emt 0:00:00]} Kb4 {[%emt 0:00:37]} 42. Ra1 {[%emt 0:00:00]} b2 {[%emt 0:00:18]} 43. Re1 {[%emt 0:00:00]} Kb3 {[%emt 0:00:51]} 44. Re3+ {[%emt 0:01:33]} Ka2 {[%emt 0:00:42]} 45. Re2 {[%emt 0:00:29]} Ka1 {[%emt 0:00:13]} 0-1